Cogmind - Beta 12 @@@ ROGUE MODE // 2024.01.03 @ 22:55:43 Player: hanzu Result: Self-destructed Performance ------------- Evolutions (3) 1500 Regions Visited (10) 2000 Robots Destroyed (156) 780 Value Destroyed (5252) 5252 Prototype IDs (48) 960 Alien Tech Used (0) 0 Bonus (3257) 3257 TOTAL SCORE: 13749 Bonus ------- High Alert Combat Kills 946 Follower Combat Kills 435 Entered Garrisons 400 Used RIF Installer 1500 Aligned with FarCom 300 Friendly Fire -324 Cogmind --------- Core Integrity 517/700 Matter 35/300 Energy 300/300 System Corruption 5% Temperature Cool (0) Movement Core (1050) Ox20 Location -7/Lower Caves Parts ------- > --- POWER (1) -------- Enhanced Nuclear Core > --- PROPULSION (4) --- (None) > --- UTILITY (6) ------ High-capacity Storage Unit Structural Scanner Hardened Medium Armor Plating Hacking Suite Hacking Suite System Shield > --- WEAPON (2) ------- Assault Cannon > --- INVENTORY (20) --- Enhanced Nuclear Core Armored Treads Improved Cooling System Seismic Detector Powered Armor Authchip [R/Combat] Relay Coupler [Swarmer] (39) Relay Coupler [Grunt] (21) Relay Coupler [Duelist] (23) Relay Coupler [Hunter] (14) High-powered Tractor Beam Improved Light Cannon Grenade Launcher Rocket Launcher Power Maul Peak State ------------ > --- POWER ------------ Enhanced Nuclear Core > --- PROPULSION ------- Aerolev Unit Aerolev Unit Aerolev Unit > --- UTILITY ---------- High-capacity Storage Unit 0b10 Alert Chip Hacking Suite Hacking Suite Relay Coupler [Hunter] > --- WEAPON ----------- Assault Cannon Power Maul > --- INVENTORY -------- Enhanced Nuclear Core Hover Unit Airjet Structural Scanner Seismic Detector Reflective Plating Powered Armor System Shield System Shield Authchip [R/Combat] Relay Coupler [Swarmer] Relay Coupler [Grunt] Relay Coupler [Sentry] High-powered Tractor Beam Improved Light Cannon Improved Light Cannon Grenade Launcher Rocket Launcher Missile Launcher Improved Datajack [Rating: 47] Favorites ----------- Power Enhanced Nuclear Core Engine Ion Engine Power Core Enhanced Nuclear Core Propulsion Light Treads Treads Light Treads Hover Unit Aerolev Unit Utility High-capacity Storage Unit Device Improved Heat Sink Storage High-capacity Storage Unit Processor 0b10 Alert Chip Hackware Hacking Suite Protection Powered Armor Weapon Assault Cannon Energy Gun Beamcaster Energy Cannon Heavy Particle Cannon Ballistic Gun Assault Rifle Ballistic Cannon Assault Cannon Launcher Grenade Launcher Impact Weapon Power Maul Special Melee Weapon Improved Datajack Build | -11 -10 -10 -10 -9 -8 -8 -8 -8 -7 -7 ------- Run | Jun Mat Min Exi Min Mat Gar Mat Gar Fac Low Slots Evolved 6 | . . . . . 4 . . . 2 . Power . | . . . . . . . . . . . Propulsion 2 | . . . . . 1 . . . 1 . Utility 4 | . . . . . 3 . . . 1 . Weapon . | . . . . . . . . . . . Parts Attached 159 | 6 21 4 2 1 40 15 22 19 29 . Power 4 | 1 . 1 . . 1 . . . 1 . Engine 1 | 1 . . . . . . . . . . Core 3 | . . 1 . . 1 . . . 1 . Reactor . | . . . . . . . . . . . Propulsion 24 | 2 2 . . . 6 2 4 1 7 . Treads 10 | 2 2 . . . 5 . 1 . . . Leg . | . . . . . . . . . . . Wheel . | . . . . . . . . . . . Hover 14 | . . . . . 1 2 3 1 7 . Flight . | . . . . . . . . . . . Utility 41 | 1 5 1 1 . 8 4 5 6 10 . Device 13 | . 4 1 . . 5 1 . . 2 . Storage 3 | 1 1 . 1 . . . . . . . Processor 1 | . . . . . . . 1 . . . Hackware 15 | . . . . . . 2 3 3 7 . Protection 9 | . . . . . 3 1 1 3 1 . Artifact . | . . . . . . . . . . . Weapon 90 | 2 14 2 1 1 25 9 13 12 11 . Energy Gun 6 | . . 1 . . 4 . . 1 . . Energy Cannon 5 | . . 1 . . 3 1 . . . . Ballistic Gun 9 | 2 4 . . . 3 . . . . . Ballistic Cannon 27 | . 6 . . 1 6 1 8 2 3 . Launcher 27 | . 4 . . . 8 6 2 3 4 . Special Weapon . | . . . . . . . . . . . Impact Weapon 8 | . . . . . 1 . 1 4 2 . Slashing Weapon . | . . . . . . . . . . . Piercing Weapon . | . . . . . . . . . . . Special Melee Weapon 8 | . . . 1 . . 1 2 2 2 . Unidentified Prototypes 5 | . . . . . 5 . . . . . Parts Lost 17 | . . . . . 3 . . 4 10 . Power 1 | . . . . . 1 . . . . . Propulsion 9 | . . . . . 2 . . 1 6 . Utility 3 | . . . . . . . . 1 2 . Weapon 4 | . . . . . . . . 2 2 . Highest Loss Streak 4 | . . . . . 1 . . 3 4 . To Critical Strikes . | . . . . . . . . . . . Average Slot Usage (%) 96 | . 97 100 100 100 94 94 99 97 94 . Engine 2 | . 14 6 . . . . . . . . Core 7 | . . 7 14 14 9 9 9 9 7 . Treads 16 | . 27 28 28 28 22 17 1 . . . Hover 9 | . . . . . . 5 25 26 27 . Device 14 | . 11 14 14 14 27 18 5 . 5 . Storage 10 | . 14 14 14 14 9 9 9 9 7 . Processor 1 | . . . . . . . 7 5 . . Hackware 8 | . . . . . . 5 22 17 27 . Protection 5 | . . . . . 8 11 . 11 1 . Energy Gun 3 | . . 4 14 14 5 . . 4 . . Energy Cannon 2 | . . . . . 2 8 2 . . . Ballistic Gun 2 | . 14 . . . 2 . . . . . Ballistic Cannon 6 | . 13 22 1 5 4 1 13 5 2 . Launcher 1 | . . . . . . 6 . . 1 . Impact Weapon 1 | . . . . . 1 . . 5 4 . Special Melee Weapon 2 | . . . 12 8 . 1 1 . 6 . Naked Turns . | . . . . . . . . . . . Heaviest Build 76 | 12 24 26 52 55 73 76 67 73 67 . Greatest Support 60 | 40 40 40 40 40 60 40 24 24 34 . Greatest Overweight (x) 20 | . . . 1 1 3 3 3 4 20 . Average Overweight (x) 1 | . . . . 1 . 1 2 2 1 . Largest Inventory Capacity 20 | 8 10 10 20 20 20 20 20 20 20 . Average Capacity 17 | 6 8 10 17 20 20 20 20 20 20 . Most Carried 20 | 5 10 10 11 14 20 20 20 20 20 . Average Carried 16 | 1 7 9 10 12 18 19 19 18 18 . Final Capacity 20 | 8 10 10 20 20 20 20 20 20 20 20 Final Carried 20 | 3 10 10 11 14 20 20 20 20 15 15 Class Distribution -------------------- 32% | Scavenger-Mutant 31% | Mutant 27% | Bothacker-Mutant 8% | Hacker-Mutant Dominant Class ---------------- Mutant | -10/Materials Mutant | -10/Mines Scavenger-Mutant | -10/Exiles Scavenger-Mutant | -9/Mines Scavenger-Mutant | -8/Materials Mutant | -8/Garrison Bothacker-Mutant | -8/Materials Bothacker-Mutant | -8/Garrison Bothacker-Mutant | -7/Factory Bothacker-Mutant | -7/Lower Caves Resources | -11 -10 -10 -10 -9 -8 -8 -8 -8 -7 -7 ----------- Run | Jun Mat Min Exi Min Mat Gar Mat Gar Fac Low Matter Collected 3377 | 234 463 235 20 22 747 497 543 229 387 . Remotely 178 | . . . . . 178 . . . . . Salvage Created 4152 | 17 565 296 . 103 1180 475 975 101 440 . Parts 284 | 3 44 11 . 5 73 30 68 15 35 . Haulers Intercepted 7 | . 1 . . . 3 . 1 . 2 . Recyclers Shooed . | . . . . . . . . . . . Parts Field Recycled . | . . . . . . . . . . . Retrieved Matter . | . . . . . . . . . . . Parts Self-Destructed . | . . . . . . . . . . . Prevented . | . . . . . . . . . . . Kills | -11 -10 -10 -10 -9 -8 -8 -8 -8 -7 -7 ------- Run | Jun Mat Min Exi Min Mat Gar Mat Gar Fac Low Combat Hostiles Destroyed 107 | . 15 5 . 2 26 22 18 9 10 . Guns 12 | . 4 1 . 2 4 . . 1 . . Cannons 39 | . 2 4 . . 10 4 15 2 2 . AOE 55 | . 9 . . . 11 18 3 6 8 . Classes Destroyed 16 | 1 8 1 . 1 2 1 . 2 . . Worker 9 | . 2 . . . 4 . . . 3 . Builder 10 | . 1 . . . 2 . 2 . 5 . Tunneler 1 | 1 . . . . . . . . . . Hauler 7 | . 1 . . . 3 . 1 . 2 . Recycler 8 | . 1 3 . . 1 . 3 . . . Operator 5 | . 2 . . . 1 . 2 . . . Watcher 7 | . 3 . . . 1 . 1 . 2 . Swarmer 30 | . 5 2 . . 4 8 2 6 3 . Grunt 51 | . 10 3 . 1 14 11 8 1 3 . Brawler 1 | . . . . 1 . . . . . . Duelist 6 | . . . . . . 1 2 . 3 . Protector 1 | . . . . . . . . 1 . . Sentry 14 | . . . . . 7 2 5 . . . Demolisher 1 | . . . . . . . . 1 . . Hunter 3 | . . . . . 1 . 1 . 1 . Zionite 1 | . . 1 . . . . . . . . Butcher 1 | . . . . . . . 1 . . . Best Kill Streak 7 | 1 6 4 . 2 5 4 5 5 7 . Combat Bots Only 5 | . 4 4 . 2 4 4 3 5 4 . Max Kills in Single Turn 3 | 1 3 1 . 1 3 3 3 3 3 . Gunslinging . | . . . . . . . . . . . Exploded 3 | . 2 . . . 3 3 2 3 3 . Melee . | . . . . . . . . . . . Uniques/NPCs Destroyed . | . . . . . . . . . . . Combat | -11 -10 -10 -10 -9 -8 -8 -8 -8 -7 -7 -------- Run | Jun Mat Min Exi Min Mat Gar Mat Gar Fac Low Damage Taken 4266 | . 531 116 . 16 790 573 558 597 1085 . Core 681 | . 83 11 . 16 169 48 100 71 183 . Absorbed by Shields 13 | . . . . . . 13 . . . . Regen/Repaired (Parts) 538 | . 92 . . . 41 . 214 114 77 . Core Remaining (%) 61 | 100 . . . 56 . . . 29 . . Volleys Fired 253 | 1 45 15 . 3 70 43 35 17 24 . Largest 2 | 2 2 2 . 2 2 2 2 2 2 . Hottest 119 | 40 78 114 . 114 119 119 119 83 83 . Shots Fired 427 | 2 82 30 . 6 124 50 70 31 32 . Gun 121 | 2 52 1 . 3 59 . . 4 . . Cannon 224 | . 22 29 . 3 45 19 67 21 18 . Launcher 82 | . 8 . . . 20 31 3 6 14 . Special . | . . . . . . . . . . . Kinetic 256 | 2 74 28 . 3 51 1 58 21 18 . Thermal 89 | . . 2 . 3 53 18 9 4 . . Explosive 82 | . 8 . . . 20 31 3 6 14 . Electromagnetic . | . . . . . . . . . . . Robot Hit Streak 13 | . 13 5 . 6 11 10 12 7 7 . Robot Miss Streak 4 | 2 4 3 . 1 3 3 2 4 1 . Penetration Max . | . . . . . . . . . . . Secondary Targets . | . . . . . . . . . . . Shots Hit Robots 270 | . 50 18 5 3 77 20 48 19 30 . Core Hits 230 | 1 40 10 . 2 53 43 35 17 29 . Critical Kills . | . . . . . . . . . . . Critical Parts Destroyed 3 | . . . . . 1 . . . 2 . Critical Strikes 19 | . 1 2 . . 6 . 3 1 6 . Burn 4 | . . . . . 4 . . . . . Blast 12 | . 1 2 . . 1 . 3 1 4 . Smash 3 | . . . . . 1 . . . 2 . Melee Attacks 65 | . . . 5 . 7 . 5 16 32 . Impact 40 | . . . . . 7 . 1 13 19 . Slashing . | . . . . . . . . . . . Piercing . | . . . . . . . . . . . Sneak Attacks 15 | . . . 4 . 1 . 1 . 9 . Combat Hostiles 1 | . . . . . . . . . 1 . Follow-up Attacks . | . . . . . . . . . . . Damage Inflicted 10661 | 10 1271 435 . 63 3206 1639 1638 708 1691 . Guns 1402 | 10 430 22 . 63 835 . . 42 . . Cannons 3380 | . 236 413 . . 672 235 1263 245 316 . Explosions 5345 | . 595 . . . 1430 1404 375 421 1120 . Melee 524 | . . . . . 269 . . . 255 . Ramming 10 | . 10 . . . . . . . . . Kinetic 3394 | 10 666 388 . . 712 . 1057 245 316 . Thermal 1388 | . . 47 . 63 795 235 206 42 . . Explosive 5345 | . 595 . . . 1430 1404 375 421 1120 . Electromagnetic . | . . . . . . . . . . . Impact 524 | . . . . . 269 . . . 255 . Slashing . | . . . . . . . . . . . Piercing . | . . . . . . . . . . . Highest Corruption 5 | . . . . . 1 1 1 1 5 . Average Corruption 1 | . . . . . 1 1 1 1 4 . Corruption Purged . | . . . . . . . . . . . Corruption Blocked . | . . . . . . . . . . . Effects 48 | . . . . . 1 9 11 2 25 . Message Errors 8 | . . . . . 1 2 1 . 4 . Matter Fused 10 | . . . . . . . 2 1 7 . Heat Flow Errors 11 | . . . . . . 3 3 . 5 . Energy Discharges 4 | . . . . . . 1 . 1 2 . Parts Rejected 1 | . . . . . . . . . 1 . Data Loss (minor) 5 | . . . . . . 1 1 . 3 . Data Loss (major) 4 | . . . . . . . 2 . 2 . Misfires 2 | . . . . . . 1 1 . . . Alerts 3 | . . . . . . 1 1 . 1 . Overload Shots . | . . . . . . . . . . . Overflow Damage 282 | . . 5 . . 71 45 1 . 160 . Projectiles 6 | . . 5 . . . . 1 . . . Explosions 57 | . . . . . 11 45 . . 1 . Melee 219 | . . . . . 60 . . . 159 . Knockbacks 30 | . 3 4 . . 8 . 6 1 8 . Impact 4 | . . . . . 1 . . . 3 . Kinetic 24 | . 3 4 . . 7 . 5 1 4 . Secondary 2 | . . . . . . . 1 . 1 . Self-Inflicted Damage 148 | . . . . . . 84 . 39 25 . Shots 7 | . . . . . . 3 . 1 3 . Rammed 1 | . 1 . . . . . . . . . Targets Rammed 1 | . 1 . . . . . . . . . Kicked . | . . . . . . . . . . . Crushed . | . . . . . . . . . . . Highest Temperature 382 | . 114 171 . 54 354 260 232 382 263 . Average Temperature 78 | . 28 68 . 29 92 48 50 166 74 . Received Heat Transfer 1368 | . 189 66 . . 378 198 135 189 213 . Effects 7 | . . . . . 3 . . 4 . . Shutdowns 1 | . . . . . . . . 1 . . Energy Bleed 1 | . . . . . 1 . . . . . Interference 5 | . . . . . 2 . . 3 . . Siege Activations . | . . . . . . . . . . . Robots Corrupted . | . . . . . . . . . . . Combat Hostiles . | . . . . . . . . . . . Parts Fried 2 | . . . . . . . . . 2 . Impact Corruptions 10 | . . . . . 3 . . . 7 . Robots Melted . | . . . . . . . . . . . Combat Hostiles . | . . . . . . . . . . . Parts Melted 3 | . . . . . 2 . 1 . . . Heat Transferred 2590 | . . 74 . 111 1665 333 296 111 . . Parts Sabotaged . | . . . . . . . . . . . Parts Stolen . | . . . . . . . . . . . Parts Stripped . | . . . . . . . . . . . Power Chain Reactions . | . . . . . . . . . . . Missiles Intercepted . | . . . . . . . . . . . Alert | -11 -10 -10 -10 -9 -8 -8 -8 -8 -7 -7 ------- Run | Jun Mat Min Exi Min Mat Gar Mat Gar Fac Low Peak Influence 1375 | 5 287 169 . 65 619 1375 1008 1045 622 . Initial 670 | . 3 19 . . 25 373 670 590 548 . Average 459 | . 145 89 . 25 210 844 872 786 501 . Maximum Alert Level 4 | . 1 . . . 2 4 3 3 2 . Low Security (%) 32 | 100 63 100 . 100 57 . . . . . Level 1 12 | . 36 . . . 20 5 . . 3 . Level 2 29 | . . . . . 22 24 7 40 96 . Level 3 23 | . . . . . . 55 92 59 . . Level 4 2 | . . . . . . 15 . . . . Level 5 . | . . . . . . . . . . . High Security . | . . . . . . . . . . . Max Security . | . . . . . . . . . . . Squads Dispatched 20 | . 2 1 . . 4 . 5 . 8 . Investigation 8 | . 1 1 . . 1 . 2 . 3 . Extermination 2 | . . . . . . . . . 2 . Reinforcement 9 | . 1 . . . 3 . 2 . 3 . Assault 1 | . . . . . . . 1 . . . Garrison . | . . . . . . . . . . . Intercept . | . . . . . . . . . . . Searches Triggered . | . . . . . . . . . . . Construction Impeded 4 | . . . . . 2 . . . 2 . Haulers Reinforced . | . . . . . . . . . . . Active Scanning Responses . | . . . . . . . . . . . Cargo Convoy Interrupts . | . . . . . . . . . . . Stealth | -11 -10 -10 -10 -9 -8 -8 -8 -8 -7 -7 --------- Run | Jun Mat Min Exi Min Mat Gar Mat Gar Fac Low Distress Signals 8 | . 2 . . . 4 . . . 2 . Communications Jammed . | . . . . . . . . . . . Distress Signals . | . . . . . . . . . . . Times Spotted 162 | . 24 6 . 2 34 25 31 12 28 . Peak Tracking Total 6 | . 6 4 . 2 4 5 4 6 5 . Tactical Retreats 2 | . . . . . 1 . 1 . . . Traps | -11 -10 -10 -10 -9 -8 -8 -8 -8 -7 -7 ------- Run | Jun Mat Min Exi Min Mat Gar Mat Gar Fac Low Traps Triggered 20 | . 3 . . . 1 9 . 3 4 . Indirectly . | . . . . . . . . . . . Trap Hack Attempts 8 | . . . . . . 8 . . . . Triggered . | . . . . . . . . . . . Disarmed . | . . . . . . . . . . . Reprogrammed 1 | . . . . . . 1 . . . . Reused . | . . . . . . . . . . . Traps Extracted . | . . . . . . . . . . . Installed . | . . . . . . . . . . . Triggered . | . . . . . . . . . . . Machines | -11 -10 -10 -10 -9 -8 -8 -8 -8 -7 -7 ---------- Run | Jun Mat Min Exi Min Mat Gar Mat Gar Fac Low Machines Disabled 14 | . 1 . . . 1 3 3 3 3 . Max in Single Turn 1 | . 1 . . . 1 1 . 1 1 . Garrison Access 1 | . . . . . . . . . 1 . Garrison Relay 5 | . . . . . . 3 . 2 . . Machines Repaired . | . . . . . . . . . . . Machines Sabotaged . | . . . . . . . . . . . Overloaded Fab Kills . | . . . . . . . . . . . Hacking | -11 -10 -10 -10 -9 -8 -8 -8 -8 -7 -7 --------- Run | Jun Mat Min Exi Min Mat Gar Mat Gar Fac Low Machines Accessed 46 | . 10 1 2 . 14 3 7 1 8 . Terminals 25 | . 7 . . . 8 3 3 1 3 . Fabricators 1 | . . . . . . . . . 1 . Repair Stations 4 | . 1 . . . 1 . 2 . . . Recycling Units 5 | . 2 . . . 2 . . . 1 . Scanalyzers 5 | . . . . . 2 . 1 . 2 . Garrison Access 3 | . . . . . 1 . 1 . 1 . Total Hacks 126 | . 32 1 2 . 38 6 20 2 25 . Successful 72 | . 16 1 2 . 23 2 14 1 13 . Failed 53 | . 15 . . . 15 4 6 1 12 . Catastrophic 7 | . 1 . . . 3 . . . 3 . Database Lockouts 1 | . 1 . . . . . . . . . Manual 43 | . 13 . 1 . 12 . 8 . 9 . Terminals 75 | . 25 . . . 23 6 10 2 9 . Fabricators 3 | . . . . . . . . . 3 . Repair Stations 11 | . 4 . . . 2 . 5 . . . Recycling Units 9 | . 3 . . . 3 . . . 3 . Scanalyzers 20 | . . . . . 8 . 4 . 8 . Garrison Access 5 | . . . . . 2 . 1 . 2 . Terminal Hacks 23 | . 7 1 2 . 6 2 3 1 1 . Record 1 | . . . 1 . . . . . . . Robot Analysis 3 | . 1 . . . 1 . 1 . . . Prototype ID Bank 4 | . 2 . . . 2 . . . . . Open Door 2 | . . 1 . . . 1 . . . . Branch Access Points 2 | . 1 . . . . . 1 . . . Emergency Access Points 1 | . . . . . . . . 1 . . Terminal Index 2 | . . . . . 1 . . . 1 . Unreport Threat 2 | . 1 . . . 1 . . . . . Hauler Manifests 1 | . 1 . . . . . . . . . Registered Components 1 | . 1 . . . . . . . . . Zone Layout 2 | . . . . . 1 . 1 . . . Patrol Navigation 1 | . . . . . . 1 . . . . EX-Prototype ID Bank 1 | . . . 1 . . . . . . . Fabricator Hacks 1 | . . . . . . . . . 1 . Network Status 1 | . . . . . . . . . 1 . Repair Station Hacks 10 | . 4 . . . 2 . 4 . . . Scan Component 5 | . 2 . . . 1 . 2 . . . Repair 5 | . 2 . . . 1 . 2 . . . Recycling Unit Hacks 6 | . 2 . . . 3 . . . 1 . Process 1 | . . . . . 1 . . . . . Retrieve Matter 1 | . . . . . 1 . . . . . Retrieve Components 4 | . 2 . . . 1 . . . 1 . Scanalyzer 17 | . . . . . 7 . 4 . 6 . Insert Component 8 | . . . . . 3 . 2 . 3 . Analyze 9 | . . . . . 4 . 2 . 3 . Garrison Access Hacks 3 | . . . . . 1 . 1 . 1 . Unlock Access 2 | . . . . . 1 . 1 . . . Seal Access 1 | . . . . . . . . . 1 . Unauthorized Hacks 12 | . 3 . . . 4 . 2 . 3 . Terminals 10 | . 3 . . . 4 . 2 . 1 . Botnet 9 | . 3 . . . 4 . 1 . 1 . Operators 1 | . . . . . . . 1 . . . Fabricators . | . . . . . . . . . . . Repair Stations . | . . . . . . . . . . . Recycling Units 1 | . . . . . . . . . 1 . Recyclers 1 | . . . . . . . . . 1 . Scanalyzers 1 | . . . . . . . . . 1 . Extract 1 | . . . . . . . . . 1 . Garrison Access . | . . . . . . . . . . . Data Cores Recovered 1 | . 1 . . . . . . . . . Used . | . . . . . . . . . . . Hacking Detections 35 | . 9 . . . 11 2 6 1 6 . Full Trace Events 6 | . 1 . . . 1 1 1 . 2 . Feedback Events . | . . . . . . . . . . . Feedback Blocked . | . . . . . . . . . . . Robot Schematics Acquired . | . . . . . . . . . . . Robots Built . | . . . . . . . . . . . Authchips . | . . . . . . . . . . . Time . | . . . . . . . . . . . Total Robot Build Rating . | . . . . . . . . . . . Part Schematics Acquired 10 | . . . . . 3 . 2 . 5 . Parts Built . | . . . . . . . . . . . Authchips . | . . . . . . . . . . . Time . | . . . . . . . . . . . Total Part Build Rating . | . . . . . . . . . . . Parts Repaired 5 | . 2 . . . 1 . 2 . . . Time 233 | . 52 . . . 44 . 137 . . . Parts Recycled . | . . . . . . . . . . . Recycled Matter 138 | . . . . . 138 . . . . . Retrieved Matter 211 | . . . . . 211 . . . . . Retrieved Components 9 | . 2 . . . 3 . . . 4 . Parts Scanalyzed 8 | . . . . . 3 . 2 . 3 . Part Schematics Acquired 8 | . . . . . 3 . 2 . 3 . Parts Damaged 3 | . . . . . 2 . . . 1 . Bothacking | -11 -10 -10 -10 -9 -8 -8 -8 -8 -7 -7 ------------ Run | Jun Mat Min Exi Min Mat Gar Mat Gar Fac Low Used RIF Installer 3 | . . . . . . 1 . 2 . . Threat Obfuscator 1 | . . . . . . . . 1 . . Program Shield 1 | . . . . . . . . 1 . . Robots Hacked 23 | . . . 4 . . . 4 3 12 . Non-combat 12 | . . . 3 . . . 1 . 8 . Combat 11 | . . . 1 . . . 3 3 4 . Robot Hacks Applied 23 | . . . 4 . . . 4 3 12 . parse_system 5 | . . . 4 . . . 1 . . . no_distress 1 | . . . . . . . . . 1 . find_chute 1 | . . . . . . . . . 1 . ignore_repairs 2 | . . . . . . . . . 2 . find_fabricator 1 | . . . . . . . . . 1 . find_recycling 1 | . . . . . . . . . 1 . map_route 1 | . . . . . . . . . 1 . formatsys_low 2 | . . . . . . . 1 . 1 . formatsys_high 9 | . . . . . . . 2 3 4 . Relay Couplers Released 21 | . . . . . . 13 . 8 . . Machine Destruction 21 | . . . . . . 13 . 8 . . Attached 9 | . . . . . . 1 2 2 4 . Fabnet Peak Effective % . | . . . . . . . . . . . Robots Rewired 2 | . . . . . . 2 . . . . Allies Hacked 1 | . . . . . . . . . 1 . Hacks Repelled . | . . . . . . . . . . . Allies | -11 -10 -10 -10 -9 -8 -8 -8 -8 -7 -7 -------- Run | Jun Mat Min Exi Min Mat Gar Mat Gar Fac Low Total Allies 15 | . . 2 . . . 2 3 3 5 . Largest Group 5 | . . 2 . . . 2 2 4 5 . Highest-Rated Group 113 | . . 42 . . . 56 56 76 113 . Highest-Rated Ally 32 | . . 31 . . . 31 31 23 32 . Total Orders 17 | . . . . . . . 3 5 9 . STAY 7 | . . . . . . . 1 2 4 . FOLLOW 7 | . . . . . . . 1 2 4 . AID 3 | . . . . . . . 1 1 1 . Ally Attacks 105 | . . 13 . . . 4 35 23 30 . Total Damage 1725 | . . 166 . . . 61 490 251 757 . Kills 20 | . . 1 . . . 1 3 5 10 . Allies Corrupted 1 | . . . . . . . . . 1 . Allies Melted . | . . . . . . . . . . . Intel | -11 -10 -10 -10 -9 -8 -8 -8 -8 -7 -7 ------- Run | Jun Mat Min Exi Min Mat Gar Mat Gar Fac Low Robot Analysis Total 3 | . 1 . . . 1 . 1 . . . Derelict Logs Recovered 2 | . . 1 . 1 . . . . . . Drone Launches . | . . . . . . . . . . . Drone Recoveries . | . . . . . . . . . . . Exploration | -11 -10 -10 -10 -9 -8 -8 -8 -8 -7 -7 ------------- Run | Jun Mat Min Exi Min Mat Gar Mat Gar Fac Low Turns Passed 10501 | 74 1466 580 686 151 2465 1788 1098 552 1641 . Spaces Moved 4750 | 41 744 323 311 57 860 672 463 236 1043 . Core 10 | 9 . . . . . . . . 1 . Treads 2954 | 32 744 323 311 57 860 627 . . . . Legs . | . . . . . . . . . . . Wheels . | . . . . . . . . . . . Hover 1786 | . . . . . . 45 463 236 1042 . Flight . | . . . . . . . . . . . Fastest Speed 50 | 50 160 160 160 240 160 240 162 162 103 . Average Speed 183 | 135 160 160 217 240 232 240 173 168 126 . Slowest Speed 1050 | 160 160 160 240 240 400 246 246 286 1050 . Overloaded Moves . | . . . . . . . . . . . Propulsion Burnouts . | . . . . . . . . . . . Robots Hopped . | . . . . . . . . . . . Cave-ins Triggered . | . . . . . . . . . . . Exploration Rate (%) 47 | 5 98 68 71 19 72 68 40 47 34 1 Regions Visited 10 Branch Regions 4 Pre-discovered Areas 1 | . . . 1 . . . . . . . Known Exits Taken 3 | . 1 . . . 1 . 1 . . . Unknown Exits Taken 5 | 1 . 1 1 1 . . . . 1 . Scrap Searched 1 | . . 1 . . . . . . . . Spaces Dug 74 | . 8 . . . 18 25 1 . 22 . Terrain Destroyed 469 | . 31 1 . . 167 190 6 17 57 . Melee 14 | . . . . . 2 . 1 . 11 . Projectile 14 | . 1 1 . . 9 1 2 . . . AOE 441 | . 30 . . . 156 189 3 17 46 . Terrain Rammed . | . . . . . . . . . . . Walls Destroyed . | . . . . . . . . . . . Machines Disabled . | . . . . . . . . . . . Actions | -11 -10 -10 -10 -9 -8 -8 -8 -8 -7 -7 --------- Run | Jun Mat Min Exi Min Mat Gar Mat Gar Fac Low Total 6037 | 58 939 356 319 66 1203 792 681 326 1297 . Wait 595 | 2 92 7 . 3 189 20 135 1 146 . Move 4740 | 40 743 322 310 56 860 670 463 234 1042 . Hop . | . . . . . . . . . . . Pick Up 92 | 9 20 4 1 3 20 8 9 7 11 . Fast Attach 16 | . 4 . . . 6 1 2 . 3 . Attach 35 | 6 4 . . . 4 2 3 4 12 . Detach 2 | . 2 . . . . . . . . . Swap 109 | . 13 4 2 1 31 12 17 15 14 . Drop 63 | . 15 4 1 . 16 8 9 3 7 . Fire 253 | 1 45 15 . 3 70 43 35 17 24 . Melee 65 | . . . 5 . 7 . 5 16 32 . Ram . | . . . . . . . . . . . Kick . | . . . . . . . . . . . Crush 1 | . 1 . . . . . . . . . Escape Stasis 41 | . . . . . . 15 . 26 . . Rewire 17 | . . . . . . 5 3 3 6 . Trap 8 | . . . . . . 8 . . . . Miscellaneous . | . . . . . . . . . . . Route ------- -11/Junkyard -10/Materials (discovered 5 exits: [*Mat x3] / *Min x2) -10/Mines (discovered 3 exits: [*Mat x2] / *Exi) -10/Exiles -9/Mines -8/Materials (discovered 3 exits: *Fac / Sto / Gar) -8/Garrison (discovered 3 exits: *Mat x3) -8/Materials (discovered 4 exits: *Fac / *Sto x2 / Gar) -8/Garrison -7/Factory -7/Lower Caves History --------- Turn | Location | Event 7 | -11/Junkyard | Discovered new exit (range 16) 75 | -11/Junkyard | Entered Materials 312 | -10/Materials | Build established: Mutant 338 | -10/Materials | Discovered new exit (range 12) 740 | -10/Materials | Discovered new exit (range 7) 870 | -10/Materials | Central database locked down 870 | -10/Materials | Identified exit to Mines 908 | -10/Materials | Discovered new exit (range 9) 1169 | -10/Materials | Discovered new exit (range 9) 1222 | -10/Materials | Repaired Grenade Launcher 1249 | -10/Materials | Repaired Lgt. Treads 1541 | -10/Materials | Entered Mines 1569 | -10/Mines | Discovered new exit (range 4) 1858 | -10/Mines | Met a Derelict shopkeep closing up shop 1937 | -10/Mines | Discovered new exit (range 12) 2114 | -10/Mines | Deemed a non-threat by the Exiles lab entrance 2114 | -10/Mines | Discovered new exit (range 5) 2121 | -10/Mines | Entered Exiles 2161 | -10/Exiles | Met 8R-AWN 2196 | -10/Exiles | Met EX-HEX 2216 | -10/Exiles | Build established: Scavenger-Mutant 2309 | -10/Exiles | Met EX-DEC 2375 | -10/Exiles | Learned location of Zion (-7) 2416 | -10/Exiles | Met EX-BIN 2466 | -10/Exiles | Aligned with FarCom system 2468 | -10/Exiles | Given EX-Vault access code 2528 | -10/Exiles | Opened EX-Vault 2542 | -10/Exiles | Found 0b10 Alert Chip 2589 | -10/Exiles | Warned to stay clear of 0b10 Research branches 2626 | -10/Exiles | Exiles lab attacked by MAIN.C 2788 | -10/Exiles | Discovered new exit (range 10) 2807 | -10/Exiles | Left Exiles lab with 0b10 Alert Chip 2807 | -10/Exiles | Entered Mines 2833 | -9/Mines | Received a Rocket Launcher from a helpful Derelict 2880 | -9/Mines | Learned Materials interactive machine intel 2946 | -9/Mines | Discovered new exit (range 5) 2958 | -9/Mines | Entered Materials 2958 | -8/Materials | Evolved 4 slots: Propulsion x1, Utility x3 2959 | -8/Materials | Identified exit to Storage 2960 | -8/Materials | Loaded intel: 19 interactive machine locations 4418 | -8/Materials | Found Powered Armor 4423 | -8/Materials | Found Powered Armor 4487 | -8/Materials | Repaired Power Maul 4790 | -8/Materials | Discovered new exit (range 15) 4848 | -8/Materials | Build established: Mutant 5301 | -8/Materials | Build established: Scavenger-Mutant 5423 | -8/Materials | Identified exit to Garrison 5423 | -8/Materials | Entered Garrison 5578 | -8/Garrison | Triggered checkpoint 5603 | -8/Garrison | Garrison Relay disabled 5741 | -8/Garrison | Build established: Mutant 5884 | -8/Garrison | Triggered checkpoint 6200 | -8/Garrison | Triggered checkpoint 6271 | -8/Garrison | Garrison Relay disabled 6388 | -8/Garrison | Discovered new exit (range 14) 6488 | -8/Garrison | Build established: Scavenger-Mutant 6518 | -8/Garrison | Triggered checkpoint 6552 | -8/Garrison | Installed Relay Interface Framework 6754 | -8/Garrison | Discovered new exit (range 11) 6857 | -8/Garrison | Build established: Bothacker-Mutant 7020 | -8/Garrison | Triggered checkpoint 7026 | -8/Garrison | Discovered new exit (range 13) 7076 | -8/Garrison | Garrison Relay disabled 7211 | -8/Garrison | Entered Materials 7211 | -8/Materials | Accompanied by 2 allies 7443 | -8/Materials | Repaired Broken Aerolev Unit 7611 | -8/Materials | First assault squad dispatched 7615 | -8/Materials | Repaired Broken Powered Armor 8127 | -8/Materials | Core integrity fell below 50% 8293 | -8/Materials | Discovered new exit (range 13) 8309 | -8/Materials | Identified exit to Garrison 8309 | -8/Materials | Entered Garrison 8309 | -8/Garrison | Accompanied by 1 ally 8344 | -8/Garrison | Triggered checkpoint 8383 | -8/Garrison | Expanded RIF knowledge: Program Shield 8411 | -8/Garrison | Garrison Relay disabled 8518 | -8/Garrison | Triggered checkpoint 8534 | -8/Garrison | Triggered checkpoint 8567 | -8/Garrison | Triggered checkpoint 8647 | -8/Garrison | Lost 3 parts (1n2w) 8753 | -8/Garrison | Garrison Relay disabled 8818 | -8/Garrison | Discovered new exit (range 11) 8832 | -8/Garrison | Expanded RIF knowledge: Threat Obfuscation 8861 | -8/Garrison | Entered Factory 8861 | -7/Factory | Accompanied by 3 allies 8861 | -7/Factory | Evolved 2 slots: Propulsion x1, Utility x1 10082 | -7/Factory | Build established: Hacker-Mutant 10396 | -7/Factory | Lost 4 parts (2n1u1w) 10473 | -7/Factory | Discovered new exit (range 13) 10502 | -7/Factory | Entered Lower Caves 10502 | -7/Lower Caves | Accompanied by 1 ally 10502 | -7/Lower Caves | Self-destructed Last Messages --------------- 10453_ R-06 Scavenger inserts Imp. Sensor Array into recycling unit. 10456_ R-06 Scavenger inserts Lgt. Ion Engine into recycling unit. 10457_ M-13 Machinist repairs Lgt. Ion Engine. 10459_ R-06 Scavenger inserts Lgt. Treads into recycling unit. 10462_ R-06 Scavenger inserts Carbon-fiber Leg into recycling unit. 10466_ Administrator 4a reveals location of Heavy Explosive Trap. 10470_ W-25 Informer sends out distress signal. 10470_ R-06 Scavenger inserts Imp. Cesium-ion Thruster into recycling unit. 10473_ EXIT=FOUND 10476_ Y-54 Guardian suffers critical hit (Blast). 10486_ ALERT: Rogue bot located, Programmers report to Factory Zone 7D. 10489_ Acquired 8 matter. 10492_ System corrupted: Heat flow error (+177). 10494_ Aerolev Unit destroyed. 10497_ Hover Unit destroyed. 10500_ Imp. Light Cannon destroyed. 10500_ Aerolev Unit destroyed. LOCATION=UNKNOWN GOAL=ESCAPE Map ----- +----------------------------------------------------+ | ??????????????????????????????????????????????? | | ??????????????????????????????????????????????? | | ??????????????????????????????????????????????? | | ??????????????????????????????????????????????? | | ??????????????????????????????????????????????? | | ??????????????????????????????????????????????? | | ??????????????????????????????????????????????? | | ??????????????????????????????????????????????? | | ??????????????????????????????????????????????? | | ??????????????????????????????????????????????? | | ??????????????????????????????????????????????? | | ??????????????????????????????????????????????? | | ??????????????????????????????????????????????? | | ??????????????????????????????????????????????? | | ??????????????????????????????????????????????? | | ??????????????????????????????????????????????? | | ??????????????????????????????????????????????? | | ??????????????????????????????????????????????? | | ??????????????????????????????????????????????? | | ??????????????????????????????????????????????? | | ??????????????????????????????????????????????? | | ??????????????????????????????????????????????? | | ??????????????????????? ####?????????????????? | | ??????????????????????##########??????????????? | | ??????????????????????### #####??????????????? | | ?????????????????????### @ o##??????????????? | | ?????????????????????##k k ##??????????????? | | ??????????????????# k ###??????????????? | | ??????????????????## ## ######??????????????? | | ??????????????????## ### #####???????????????? | | ??????????????????## #### ##??????????????????? | | ??????????????????## #### ##??????????????????? | | ??????????????????# ??## ##??????????????????? | | ???????????????? ???? ##??????????????????? | | ???????????????? # ????? #??????????????????? | | ???????????????? ##????? #???????????????????? | | ??????????????????????? # ???????????????????? | | ??????????????????????? # ???????????????????? | | ??????????????????????? ##????????????????????? | | ??????????????????????????????????????????????? | | ??????????????????????????????????????????????? | | ??????????????????????????????????????????????? | | ??????????????????????????????????????????????? | | ??????????????????????????????????????????????? | | ??????????????????????????????????????????????? | | ??????????????????????????????????????????????? | | ??????????????????????????????????????????????? | | ??????????????????????????????????????????????? | | ??????????????????????????????????????????????? | | ??????????????????????????????????????????????? | +----------------------------------------------------+ Best States ------------- Heat Dissipation 45 Energy Generation 17 Energy Capacity 300 Matter Stores 300 Matter Capacity 300 Sight Range 16 Terrain Scan Density 10 Armor Coverage 550 Resistance: TH 10 Weapon Cycling 15 Evasion (%) 40 Recoil Reduction 3 Offensive Hacking 30 Defensive Hacking 20 Relay Coupler Types 2 Relay Coupler Value 29 Authchip Count 1 Item Schematics ----------------- Aerolev Unit | -8/Materials | Scanalyzed Powered Armor | -8/Materials | Scanalyzed Hacking Suite | -8/Materials | Scanalyzed Airjet | -8/Materials | Scanalyzed System Shield | -8/Materials | Scanalyzed Rocket Launcher | -7/Factory | Scanalyzed Hpw. Tractor Beam | -7/Factory | Scanalyzed Imp. Cooling System | -7/Factory | Scanalyzed Hvy. Laser | -7/Factory | Extracted Imp. Datajack | -7/Factory | Extracted Robot Schematics ------------------ None Fabricated ------------ Nothing Alien Tech Used ----------------- None Achievements -------------- None Challenges ------------ None Game ------ Seed RecyclingCatalystKatana Manual? 0 Play Time 01:17:38 Cumulative 169.5 hours Start 2024.01.03 @ 21:23:06 End 2024.01.03 @ 22:55:43 Sessions 1 Manual Loads 0 Difficulty Rogue Special Mode None Game No. 147 Rogue 147 Adventurer 0 Explorer 0 Win Type - Total 1 Types 1/0/0/0/0/0/0/0/0 Lore% 55 Gallery% 68 Achievement% 53 Wizard Run 0 Options --------- ASCII 0 Keyboard 0 Movement Numpad Keybinds 0 Fullscreen 2 Font 18/Smallcaps Map View 76x50 Tactical HUD 1 Map Filters NONE Filters NONE Steam 1 RUN: ce0c8c8f-0438-4c66-a1c6-b99acb34a872